fUST/lending_fUST_20240226
["ID","MTS","AMOUNT","RATE_DAILY","PERIOD"]
[315185830,1708912245156,-500.0,0.00019726,2]
[315185831,1708912245166,-500.0,0.00019726,2]
[315185832,1708912245175,-1910.36,0.00019726,2]
[315185833,1708912245185,-500.0,0.00019726,2]
[315185834,1708912245193,-605.56,0.00019726,2]
[315185835,1708912245203,-2522.96,0.00019726,2]
[315185836,1708912245212,-500.0,0.00019726,2]
[315185837,1708912245222,-500.0,0.00019726,2]
[315185838,1708912245231,-2071.58,0.00019726,2]
[315185839,1708912245241,-500.0,0.00019726,2]
[315185840,1708912245250,-501.72100302,0.00019726,2]
[315185841,1708912245259,-233.92104408,0.00019726,2]
[315185842,1708912245268,-477.80192335,0.00019726,2]
[315185843,1708912245278,-500.0,0.00019726,2]
[315185844,1708912245287,-1901.16,0.00019726,2]
[315185845,1708912245296,-214.34815551,0.00019726,2]
[315185846,1708912245305,-500.0,0.00019726,2]
[315185847,1708912245314,-500.0,0.00019726,2]
[315185848,1708912245323,-500.0,0.00019726,2]
[315185849,1708912245333,-500.0,0.00019726,2]
[315185850,1708912245342,-504.62380034,0.00019726,2]
[315185851,1708912245351,-225.36072718,0.00019726,2]
[315185852,1708912245360,-500.0,0.00019726,2]
[315185853,1708912245370,-21597.43,0.00019726,2]
[315185854,1708912245379,-282.82728076,0.00019726,2]
[315185855,1708912245389,-500.0,0.00019726,2]
[315185856,1708912245398,-659.02,0.00019726,2]
[315185858,1708912245408,-500.0,0.00019726,2]
[315185860,1708912245416,-505.00833293,0.00019726,2]
[315185863,1708912245424,-557.78269521,0.00019726,2]
[315185866,1708912245433,-300.01901672,0.00019726,2]
[315185869,1708912245442,-500.0,0.00019726,2]
[315185871,1708912245452,-2128.1,0.00019726,2]
[315185873,1708912245461,-500.0,0.00019726,2]
[315185875,1708912245471,-603.75,0.00019726,2]
[315185877,1708912245480,-500.0,0.00019726,2]
[315185879,1708912245489,-1752.81,0.00019726,2]
[315185881,1708912245498,-500.0,0.00019726,2]
[315185882,1708912245507,-3348.36,0.00019726,2]
[315185883,1708912245516,-500.0,0.00019726,2]
[315185884,1708912245525,-503.24638074,0.00019726,2]
[315185886,1708912245534,-782.71,0.00019726,2]
[315185888,1708912245544,-8169.46,0.00019726,2]
[315185890,1708912245553,-1532.95,0.00019726,2]
[315185892,1708912245562,-500.0,0.00019726,2]
[315185894,1708912245571,-2474.54,0.00019726,2]
[315185896,1708912245580,-209.81817441,0.00019726,2]
[315185897,1708912245589,-500.0,0.00019726,2]
[315185899,1708912245598,-502.36151926,0.00019726,2]
[315185908,1708912245692,-11247.4,0.00019726,2]
[315185909,1708912245703,-500.0,0.00019726,2]
[315185910,1708912245712,-22994.4,0.00019726,2]
[315185911,1708912245722,-590.34832418,0.00019726,2]
[315185912,1708912245731,-1573.02,0.00019726,2]
[315185913,1708912245740,-501.35044619,0.00019726,2]
[315185914,1708912245749,-3101.38,0.00019726,2]
[315185915,1708912245759,-501.17195476,0.00019726,2]
[315185916,1708912245768,-500.0,0.00019726,2]
[315185917,1708912245778,-4559.37,0.00019726,2]
[315185919,1708912245787,-1255.8,0.00019726,2]
[315185921,1708912245796,-501.76089687,0.00019726,2]
[315185923,1708912245805,-500.0,0.00019726,2]
[315185924,1708912245814,-331.05449464,0.00019726,2]
[315185925,1708912245846,-500.0,0.00019726,2]
[315185927,1708912245855,-3197.4,0.00019726,2]
[315185928,1708912245865,-500.0,0.00019726,2]
[315185929,1708912245873,-501.45514214,0.00019726,2]
[315185930,1708912245883,-500.0,0.00019726,2]
[315185931,1708912245893,-499.53437694,0.00019726,2]
[315185932,1708912245903,-1705.87,0.00019726,2]
[315185933,1708912245917,-502.09355324,0.00019726,2]
[315185934,1708912245927,-500.0,0.00019726,2]
[315185935,1708912245937,-501.71675449,0.00019726,2]
[315185936,1708912245946,-500.0,0.00019726,2]
[315185937,1708912245957,-2188.01,0.00019726,2]
[315185938,1708912245966,-963.98,0.00019726,2]
[315185939,1708912245976,-440.6731672,0.00019726,2]
[315185940,1708912245986,-380.12472515,0.00019736,2]
[315185941,1708912245995,-1003.79059981,0.000198,2]
[315185942,1708912246004,-201.4020096,0.00019808,2]
[315185943,1708912246014,-306.0,0.00019808,2]
[315185944,1708912246023,-1000.0,0.00019817,2]
[315185945,1708912246032,-1000.0,0.0001986,2]
[315185946,1708912246042,-1000.0,0.00019865,2]
[315185947,1708912246051,-300.0,0.00019878,2]
[315185948,1708912246061,-151.97897974,0.000199,2]
[315185949,1708912246070,-1000.0,0.0001991,2]
[315185950,1708912246081,-1000.0,0.00019936,2]
[315185951,1708912246090,-1000.0,0.00019947,2]
[315185952,1708912246099,-153.65780855,0.00019974,2]
[315185953,1708912246108,-1000.0,0.0001998,2]
[315185954,1708912246118,-865.03690768,0.00019998,2]
[315185955,1708912246127,-472.45492363,0.00019998,2]
[315185956,1708912246136,-1454.19912563,0.00019998,2]
[315185957,1708912246145,-418.97743876,0.00019999,2]
[315185958,1708912246155,-500.0,0.00019999,2]
[315185959,1708912246165,-500.0,0.00019999,2]
[315185960,1708912246175,-500.0,0.00019999,2]
[315185961,1708912246184,-500.0,0.00019999,2]
[315185962,1708912246193,-500.0,0.00019999,2]
[315185963,1708912246203,-500.0,0.00019999,2]
[315185964,1708912246213,-500.0,0.00019999,2]
[315185965,1708912246222,-338.93406027,0.00019999,2]
[315185966,1708912246231,-500.0,0.00019999,2]
[315185967,1708912246240,-500.0,0.00019999,2]
[315185968,1708912246250,-500.0,0.00019999,2]
[315185969,1708912246259,-319.09963093,0.00019999,2]
[315185970,1708912246268,-243.58118859,0.00019999,2]
[315185971,1708912246277,-243.58118859,0.00019999,2]
[315185972,1708912246286,-422524.62867369,0.0002,2]
[315185973,1708912246295,-11342.50056343,0.0002,2]
[315185974,1708912246305,-151090.3623789,0.0002,2]
[315185975,1708912246314,-1227.86508384,0.0002,5]
[315185976,1708912246323,-801.11864425,0.0002,2]
[315185977,1708912246333,-169.85706915,0.0002,2]
[315185978,1708912246343,-40239.62,0.0002,2]
[315185979,1708912246352,-108140.42701976,0.0002,2]
[315185980,1708912246831,-151.0,0.00019178,2]
[315185981,1708912246840,-151.0,0.00019452,2]
[315185982,1708912246849,-5422.7286736,0.0002,2]
[315185983,1708912246924,-339.35837532,0.0002,2]
[315185984,1708912246935,-62636.60593132,0.0002,2]
[315185985,1708912246945,-37013.35958604,0.0002,2]
[315185986,1708912246955,-3738.857986,0.0002,2]
[315185987,1708912247025,-500.0,0.00019178,2]
[315185988,1708912247035,-500.0,0.00019452,2]
[315185989,1708912247044,-128954.97242796,0.0002,2]
[315185990,1708912247053,-163.46283579,0.0002,2]
[315185991,1708912247063,-31127.85585992,0.0002,2]
[315185992,1708912247074,-17854.25359501,0.0002,2]
[315185993,1708912408849,1309.2621085,0.00018115,2]
[315185997,1708912574120,10046.59842505,0.00018068,2]
[315185998,1708912574150,14853.40157495,0.00018068,2]
[315185999,1708912593322,296.810289,0.00018068,2]
[315186000,1708913027717,482.0488144,0.00017989,2]
[315186001,1708913091963,298.6645138,0.00018,2]
[315186003,1708913299597,151.97897974,0.0001791,2]
[315186066,1708913432106,-3071.22382621,0.00018692,2]
[315186068,1708913432115,-691.70350185,0.00018693,2]
[315186069,1708913432124,-611.27082082,0.00018699,2]
[315186072,1708913432135,-457.2725848,0.000189,2]
[315186074,1708913432144,-161.03,0.00019,7]
[315186075,1708913432153,-767.73,0.00019068,3]
[315186078,1708913432163,-642.00465785,0.00019076,2]
[315186080,1708913432172,-234.45277362,0.00019076,2]
[315186082,1708913432181,-1417.17784005,0.00019076,2]
[315186085,1708913432190,-679.48334121,0.00019076,2]
[315186087,1708913432200,-213.56544308,0.00019076,2]
[315186090,1708913432209,-865.03690768,0.00019076,2]
[315186093,1708913432218,-209.85102063,0.00019077,2]
[315186095,1708913432227,-55226.95283497,0.00019078,2]
[315186158,1708913438889,-220773.04716503,0.00019078,2]
[315186161,1708913438900,-153.0,0.000191,2]
[315186163,1708913438909,-153.0,0.000191,2]
[315186165,1708913438918,-500.0,0.00019178,2]
[315186167,1708913438927,-500.0,0.00019178,2]
[315186169,1708913438936,-750.54,0.00019178,2]
[315186171,1708913438945,-500.0,0.00019178,2]
[315186172,1708913438954,-500.0,0.00019178,2]
[315186174,1708913438962,-502.70298707,0.00019178,2]
[315186176,1708913438971,-500.0,0.00019178,2]
[315186178,1708913438980,-502.62882025,0.00019178,2]
[315186180,1708913438989,-500.0,0.00019178,2]
[315186182,1708913438998,-500.0,0.00019178,2]
[315186184,1708913439007,-500.0,0.00019178,2]
[315186186,1708913439016,-500.0,0.00019178,2]
[315186188,1708913439025,-500.0,0.00019178,2]
[315186190,1708913439034,-501.08668541,0.00019178,2]
[315186192,1708913439042,-439.23108346,0.00019178,2]
[315186194,1708913439052,-500.0,0.00019178,2]
[315186196,1708913439060,-500.0,0.00019178,2]
[315186198,1708913439069,-500.0,0.00019178,2]
[315186200,1708913439079,-500.0,0.00019178,2]
[315186202,1708913439087,-500.0,0.00019178,2]
[315186204,1708913439096,-501.671664,0.00019178,2]
[315186206,1708913439106,-500.0,0.00019178,2]
[315186208,1708913439115,-500.0,0.00019178,2]
[315186210,1708913439124,-500.0,0.00019178,2]
[315186212,1708913439134,-500.0,0.00019178,2]
[315186214,1708913439144,-501.2748159,0.00019178,2]
[315186216,1708913439154,-190.79249269,0.00019178,2]
[315186218,1708913439163,-500.0,0.00019178,2]
[315186220,1708913439172,-500.0,0.00019178,2]
[315186222,1708913439182,-500.0,0.00019178,2]
[315186224,1708913439191,-500.0,0.00019178,2]
[315186226,1708913439201,-1322.43,0.00019178,2]
[315186228,1708913439211,-500.24182891,0.00019178,2]
[315186230,1708913439220,-500.0,0.00019178,2]
[315186232,1708913439229,-187.23729119,0.00019178,2]
[315186234,1708913439239,-500.51038227,0.00019178,2]
[315186236,1708913439248,-500.0,0.00019178,2]
[315186238,1708913439257,-500.0,0.00019178,2]
[315186240,1708913439266,-500.0,0.00019178,2]
[315186242,1708913439275,-500.77483683,0.00019178,2]
[315186244,1708913439285,-500.0,0.00019178,2]
[315186246,1708913439295,-500.0,0.00019178,2]
[315186248,1708913439304,-500.0,0.00019178,2]
[315186250,1708913439316,-500.0,0.00019178,2]
[315186252,1708913439326,-500.0,0.00019178,2]
[315186254,1708913439336,-500.0,0.00019178,2]
[315186256,1708913439345,-500.0,0.00019178,2]
[315186259,1708913439357,-500.0,0.00019178,2]
[315186260,1708913439366,-500.0,0.00019178,2]
[315186263,1708913439375,-500.0,0.00019178,2]
[315186264,1708913439385,-500.0,0.00019178,2]
[315186266,1708913439395,-500.0,0.00019178,2]
[315186268,1708913439405,-500.0,0.00019178,2]
[315186270,1708913439414,-500.0,0.00019178,2]
[315186273,1708913439425,-500.0,0.00019178,2]
[315186274,1708913439434,-500.0,0.00019178,2]
[315186277,1708913439443,-500.0,0.00019178,2]
[315186278,1708913439452,-500.0,0.00019178,2]
[315186280,1708913439461,-500.0,0.00019178,2]
[315186282,1708913439470,-500.0,0.00019178,2]
[315186284,1708913439479,-220.42165296,0.00019178,2]
[315186286,1708913439488,-500.0,0.00019178,2]
[315186288,1708913439497,-451.8512727,0.00019178,2]
[315186290,1708913439506,-500.39595032,0.00019178,2]
[315186292,1708913439515,-501.86676046,0.00019178,2]
[315186294,1708913439524,-500.0,0.00019178,2]
[315186296,1708913439533,-500.0,0.00019178,2]
[315186298,1708913439541,-500.0,0.00019178,2]
[315186300,1708913439550,-500.0,0.00019178,2]
[315186302,1708913439559,-500.0,0.00019178,2]
[315186304,1708913439568,-224.26002173,0.00019178,2]
[315186306,1708913439577,-1863.06,0.00019178,2]
[315186309,1708913439586,-500.0,0.00019178,2]
[315186311,1708913439595,-500.59161089,0.00019178,2]
[315186313,1708913439604,-1573.02,0.00019178,2]
[315186315,1708913439613,-500.0,0.00019178,2]
[315186317,1708913439622,-500.0,0.00019178,2]
[315186319,1708913439631,-500.0,0.00019178,2]
[315186321,1708913439641,-719.52,0.00019178,2]
[315186323,1708913439650,-500.48866021,0.00019178,2]
[315186325,1708913439658,-500.0,0.00019178,2]
[315186326,1708913439668,-501.71371694,0.00019178,2]
[315186328,1708913439676,-500.0,0.00019178,2]
[315186329,1708913439685,-502.08038454,0.00019178,2]
[315186330,1708913439694,-500.0,0.00019178,2]
[315186331,1708913439703,-500.0,0.00019178,2]
[315186332,1708913439712,-500.0,0.00019178,2]
[315186333,1708913439721,-614.76,0.00019178,2]
[315186334,1708913439730,-500.0,0.00019178,2]
[315186335,1708913439739,-500.0,0.00019178,2]
[315186336,1708913439747,-500.0,0.00019178,2]
[315186337,1708913439756,-500.0,0.00019178,2]
[315186338,1708913439765,-200.0,0.00019178,2]
[315186339,1708913439774,-500.0,0.00019178,2]
[315186340,1708913439783,-397.25117169,0.00019178,2]
[315186341,1708913439792,-500.0,0.00019178,2]
[315186342,1708913439801,-500.0,0.00019178,2]
[315186343,1708913439810,-500.0,0.00019178,2]
[315186344,1708913439819,-500.67937489,0.00019178,2]
[315186345,1708913439828,-500.0,0.00019178,2]
[315186346,1708913439837,-368.55067157,0.00019178,2]
[315186347,1708913439846,-500.0,0.00019178,2]
[315186348,1708913439855,-500.0,0.00019178,2]
[315186349,1708913439864,-502.47764759,0.00019178,2]
[315186351,1708913439873,-500.0,0.00019178,2]
[315186353,1708913439882,-500.0,0.00019178,2]
[315186355,1708913439891,-500.0,0.00019178,2]
[315186357,1708913439900,-177.56440176,0.00019178,2]
[315186359,1708913439909,-500.0,0.00019178,2]
[315186361,1708913439918,-417.97011128,0.00019178,2]
[315186363,1708913439928,-527.74951966,0.00019178,2]
[315186365,1708913439937,-500.0,0.00019178,2]
[315186367,1708913439946,-503.11301008,0.00019178,2]
[315186369,1708913439955,-500.0,0.00019178,2]
[315186371,1708913439964,-500.0,0.00019178,2]
[315186373,1708913439973,-500.0,0.00019178,2]
[315186375,1708913439981,-500.0,0.00019178,2]
[315186377,1708913439992,-500.0,0.00019178,2]
[315186379,1708913440001,-500.0,0.00019178,2]
[315186381,1708913440010,-630.73,0.00019178,2]
[315186383,1708913440019,-500.0,0.00019178,2]
[315186385,1708913440028,-500.0,0.00019178,2]
[315186387,1708913440037,-500.0,0.00019178,2]
[315186389,1708913440046,-500.0,0.00019178,2]
[315186391,1708913440055,-500.0,0.00019178,2]
[315186393,1708913440064,-500.0,0.00019178,2]
[315186395,1708913440073,-500.0,0.00019178,2]
[315186396,1708913440082,-500.0,0.00019178,2]
[315186398,1708913440091,-500.0,0.00019178,2]
[315186400,1708913440100,-500.0,0.00019178,2]
[315186401,1708913440109,-614.77234965,0.00019178,2]
[315186403,1708913440118,-500.0,0.00019178,2]
[315186405,1708913440127,-500.0,0.00019178,2]
[315186406,1708913440136,-506.6715186,0.00019178,2]
[315186408,1708913440145,-500.0,0.00019178,2]
[315186411,1708913440155,-500.0,0.00019178,2]
[315186413,1708913440164,-500.0,0.00019178,2]
[315186414,1708913440173,-500.0,0.00019178,2]
[315186415,1708913440182,-359.8403748,0.00019178,2]
[315186416,1708913440192,-500.0,0.00019178,2]
[315186417,1708913440201,-501.0884164,0.00019178,2]
[315186418,1708913440210,-500.0,0.00019178,2]
[315186419,1708913440219,-500.0,0.00019178,2]
[315186420,1708913440229,-500.0,0.00019178,2]
[315186421,1708913440238,-500.0,0.00019178,2]
[315186422,1708913440247,-500.0,0.00019178,2]
[315186423,1708913440256,-500.0,0.00019178,2]
[315186424,1708913440266,-685.49,0.00019178,2]
[315186425,1708913440275,-501.29341778,0.00019178,2]
[315186426,1708913440284,-500.0,0.00019178,2]
[315186427,1708913440296,-2332.52,0.00019178,2]
[315186428,1708913440305,-500.76681216,0.00019178,2]
[315186429,1708913440315,-234.57397735,0.00019178,2]
[315186430,1708913440324,-500.0,0.00019178,2]
[315186431,1708913440334,-500.0,0.00019178,2]
[315186432,1708913440343,-500.0,0.00019178,2]
[315186433,1708913440353,-500.0,0.00019178,2]
[315186434,1708913440362,-500.0,0.00019178,2]
[315186435,1708913440372,-500.0,0.00019178,2]
[315186436,1708913440382,-500.6043484,0.00019178,2]
[315186437,1708913440392,-500.0,0.00019178,2]
[315186438,1708913440401,-500.0,0.00019178,2]
[315186439,1708913440410,-1796.3,0.00019178,2]
[315186440,1708913440419,-500.0,0.00019178,2]
[315186441,1708913440428,-500.3462092,0.00019178,2]
[315186442,1708913440437,-500.0,0.00019178,2]
[315186443,1708913440446,-500.0,0.00019178,2]
[315186444,1708913440455,-500.0,0.00019178,2]
[315186445,1708913440464,-500.0,0.00019178,2]
[315186446,1708913440473,-500.58116796,0.00019178,2]
[315186447,1708913440482,-500.0,0.00019178,2]
[315186448,1708913440491,-500.0,0.00019178,2]
[315186449,1708913440501,-500.0,0.00019178,2]
[315186450,1708913440510,-500.0,0.00019178,2]
[315186452,1708913440519,-500.0,0.00019178,2]
[315186453,1708913440528,-500.0,0.00019178,2]
[315186454,1708913440537,-647.66354051,0.00019178,2]
[315186456,1708913440546,-491.43084547,0.00019178,2]
[315186457,1708913440555,-501.13519098,0.00019178,2]
[315186458,1708913440564,-500.0,0.00019178,2]
[315186459,1708913440573,-500.0,0.00019178,2]
[315186460,1708913440582,-500.0,0.00019178,2]
[315186461,1708913440591,-500.0,0.00019178,2]
[315186462,1708913440600,-500.0,0.00019178,2]
[315186463,1708913440609,-242.83946742,0.00019178,2]
[315186464,1708913440617,-500.0,0.00019178,2]
[315186465,1708913440626,-500.0,0.00019178,2]
[315186466,1708913440635,-500.0,0.00019178,2]
[315186467,1708913440644,-500.0,0.00019178,2]
[315186468,1708913440653,-500.0,0.00019178,2]
[315186469,1708913440662,-1019.43,0.00019178,2]
[315186470,1708913440671,-266.51557641,0.00019178,2]
[315186471,1708913440680,-151.0,0.00019178,2]
[315186472,1708913440689,-500.0,0.00019178,2]
[315186473,1708913440698,-551.86,0.00019178,2]
[315186474,1708913440708,-500.0,0.00019178,2]
[315186475,1708913440716,-500.0,0.00019178,2]
[315186476,1708913440725,-500.0,0.00019178,2]
[315186477,1708913440734,-500.0,0.00019178,2]
[315186478,1708913440743,-500.0,0.00019178,2]
[315186479,1708913440752,-500.0,0.00019178,2]
[315186480,1708913440761,-170.14503892,0.00019178,2]
[315186481,1708913440770,-500.0,0.00019178,2]
[315186482,1708913440779,-741.97,0.00019178,2]
[315186483,1708913440788,-500.0,0.00019178,2]
[315186484,1708913440797,-500.0,0.00019178,2]
[315186485,1708913440806,-205.48522156,0.00019178,2]
[315186486,1708913440815,-500.0,0.00019178,2]
[315186487,1708913440824,-500.0,0.00019178,2]
[315186488,1708913440833,-500.0,0.00019178,2]
[315186489,1708913440842,-500.0,0.00019178,2]
[315186490,1708913440850,-500.0,0.00019178,2]
[315186491,1708913440859,-1490.22,0.00019178,2]
[315186492,1708913440868,-500.0,0.00019178,2]
[315186493,1708913440877,-500.0,0.00019178,2]
[315186494,1708913440887,-500.0,0.00019178,2]
[315186495,1708913440896,-2630.39,0.00019178,2]
[315186496,1708913440905,-500.0,0.00019178,2]
[315186497,1708913440914,-500.0,0.00019178,2]
[315186498,1708913440923,-500.0,0.00019178,2]
[315186499,1708913440932,-963.98,0.00019178,2]
[315186500,1708913440941,-11205.06,0.00019178,2]
[315186501,1708913440950,-543.31285923,0.00019178,2]
[315186502,1708913440959,-500.0,0.00019178,2]
[315186503,1708913440968,-3004.16,0.00019178,2]
[315186504,1708913441071,-500.0,0.00019178,2]
[315186505,1708913441081,-500.43159131,0.00019178,2]
[315186506,1708913441090,-1989.64,0.00019178,2]
[315186507,1708913441099,-500.0,0.00019178,2]
[315186508,1708913441109,-500.0,0.00019178,2]
[315186509,1708913441118,-500.0,0.00019178,2]
[315186510,1708913441127,-4192.08,0.00019178,2]
[315186511,1708913441137,-500.0,0.00019178,2]
[315186512,1708913441146,-500.0,0.00019178,2]
[315186513,1708913441155,-477.95314472,0.00019178,2]
[315186514,1708913441164,-796.72,0.00019178,2]
[315186515,1708913441174,-506.82130633,0.00019178,2]
[315186516,1708913441183,-500.0,0.00019178,2]
[315186517,1708913441193,-500.0,0.00019178,2]
[315186518,1708913441203,-500.0,0.00019178,2]
[315186519,1708913441213,-500.0,0.00019178,2]
[315186520,1708913441222,-500.0,0.00019178,2]
[315186521,1708913441231,-1000.0,0.00019178,2]
[315186522,1708913441240,-500.0,0.00019178,2]
[315186523,1708913441249,-500.0,0.00019178,2]
[315186524,1708913441259,-507.32053121,0.00019178,2]
[315186525,1708913441268,-1982.26,0.00019178,2]
[315186526,1708913441277,-500.0,0.00019178,2]
[315186527,1708913441287,-500.0,0.00019178,2]
[315186528,1708913441299,-500.20438763,0.00019178,2]
[315186529,1708913441308,-500.0,0.00019178,2]
[315186530,1708913441317,-500.0,0.00019178,2]
[315186531,1708913441326,-2159.87,0.00019178,2]
[315186532,1708913441337,-510.75269847,0.00019178,2]
[315186533,1708913441346,-500.0,0.00019178,2]
[315186534,1708913441355,-500.0,0.00019178,2]
[315186535,1708913441365,-501.16229543,0.00019178,2]
[315186536,1708913441375,-22518.89,0.00019178,2]
[315186537,1708913441384,-268.97832651,0.00019178,2]
[315186538,1708913441394,-500.0,0.00019178,2]
[315186539,1708913441403,-500.0,0.00019178,2]
[315186540,1708913441412,-500.0,0.00019178,2]
[315186541,1708913441422,-500.43962735,0.00019178,2]
[315186542,1708913441430,-500.0,0.00019178,2]
[315186543,1708913441440,-500.0,0.00019178,2]
[315186544,1708913441448,-573.72782983,0.00019178,2]
[315186545,1708913441457,-500.0,0.00019178,2]
[315186546,1708913441467,-500.0,0.00019178,2]
[315186547,1708913441476,-500.0,0.00019178,2]
[315186548,1708913441485,-500.0,0.00019178,2]
[315186549,1708913441493,-500.0,0.00019178,2]
[315186550,1708913441502,-2218.67,0.00019178,2]
[315186551,1708913441511,-231.56852676,0.00019178,2]
[315186552,1708913441519,-1000.0,0.00019178,2]
[315186553,1708913441528,-500.33386123,0.00019178,2]
[315186554,1708913441537,-500.0,0.00019178,2]
[315186555,1708913441546,-500.0,0.00019178,2]
[315186556,1708913441555,-500.0,0.00019178,2]
[315186557,1708913441564,-502.14294064,0.00019178,2]
[315186558,1708913441573,-500.0,0.00019178,2]
[315186559,1708913441581,-500.0,0.00019178,2]
[315186560,1708913441590,-1752.81,0.00019178,2]
[315186561,1708913441600,-500.0,0.00019178,2]
[315186562,1708913441609,-500.0,0.00019178,2]
[315186563,1708913441618,-500.0,0.00019178,2]
[315186564,1708913441627,-500.0,0.00019178,2]
[315186565,1708913441637,-500.0,0.00019178,2]
[315186566,1708913441646,-522.16106929,0.00019178,2]
[315186567,1708913441655,-803.54,0.00019178,2]
[315186568,1708913441664,-500.0,0.00019178,2]
[315186569,1708913441674,-291.02772414,0.00019178,2]
[315186570,1708913441684,-500.0,0.00019178,2]
[315186571,1708913441693,-8169.46,0.00019178,2]
[315186572,1708913441702,-500.0,0.00019178,2]
[315186573,1708913441711,-500.0,0.00019178,2]
[315186574,1708913441720,-2503.81,0.00019178,2]
[315186575,1708913441729,-409.80494479,0.00019178,2]
[315186576,1708913441738,-4559.37,0.00019178,2]
[315186577,1708913441746,-518.49613271,0.00019178,2]
[315186578,1708913441756,-11247.4,0.00019178,2]
[315186579,1708913441765,-604.40046169,0.00019178,2]
[315186580,1708913441774,-628.18,0.00019178,2]
[315186581,1708913441783,-230.48065429,0.00019178,2]
[315186582,1708913441792,-514.12,0.00019178,2]
[315186583,1708913441801,-514.12,0.00019178,2]
[315186584,1708913441811,-514.12,0.00019178,2]
[315186585,1708913441820,-514.12,0.00019178,2]
[315186586,1708913441829,-500.0,0.00019178,2]
[315186587,1708913441838,-514.12,0.00019178,2]
[315186588,1708913441847,-514.12,0.00019178,2]
[315186589,1708913441856,-500.0,0.00019178,2]
[315186590,1708913441865,-514.12,0.00019178,2]
[315186591,1708913441874,-514.12,0.00019178,2]
[315186592,1708913441883,-514.12,0.00019178,2]
[315186593,1708913441892,-514.12,0.00019178,2]
[315186594,1708913441900,-514.12,0.00019178,2]
[315186595,1708913441909,-514.12,0.00019178,2]
[315186596,1708913441918,-500.0,0.00019178,2]
[315186597,1708913441927,-500.0,0.00019178,2]
[315186598,1708913441937,-3101.38,0.00019178,2]
[315186599,1708913441946,-500.0,0.00019178,2]
[315186600,1708913441954,-501.17230716,0.00019178,2]
[315186601,1708913441964,-23305.64,0.00019178,2]
[315186602,1708913441972,-500.0,0.00019178,2]
[315186603,1708913441981,-500.0,0.00019178,2]
[315186604,1708913441990,-500.0,0.00019178,2]
[315186605,1708913441999,-418.40116223,0.00019178,2]
[315186606,1708913442009,-1255.8,0.00019178,2]
[315186607,1708913442018,-625.93045909,0.00019178,2]
[315186608,1708913442027,-500.0,0.00019178,2]
[315186609,1708913442036,-500.0,0.00019178,2]
[315186610,1708913442044,-500.0,0.00019178,2]
[315186611,1708913442053,-500.0,0.00019178,2]
[315186612,1708913442062,-500.0,0.00019178,2]
[315186613,1708913442072,-500.0,0.00019178,2]
[315186614,1708913442080,-500.0,0.00019178,2]
[315186615,1708913442090,-3197.4,0.00019178,2]
[315186616,1708913442099,-500.0,0.00019178,2]
[315186617,1708913442108,-500.0,0.00019178,2]
[315186618,1708913442117,-500.0,0.00019178,2]
[315186619,1708913442125,-3348.36,0.00019178,2]
[315186620,1708913442134,-500.0,0.00019178,2]
[315186621,1708913442145,-500.0,0.00019178,2]
[315186622,1708913442155,-500.0,0.00019178,2]
[315186623,1708913442164,-500.0,0.00019178,2]
[315186624,1708913442173,-500.0,0.00019178,2]